fUSD/lending_fUSD_20250125
["ID","MTS","AMOUNT","RATE_DAILY","PERIOD"]
[350369204,1737815462514,-500.0,0.00018219,2]
[350369205,1737815462523,-500.0,0.00018219,2]
[350369206,1737815462532,-607.25,0.00018219,2]
[350369207,1737815462542,-500.0,0.00018219,2]
[350369208,1737815462552,-500.0,0.00018219,2]
[350369209,1737815462561,-1238.12,0.00018219,2]
[350369210,1737815462570,-1671.13,0.00018219,2]
[350369211,1737815462579,-747.01,0.00018219,2]
[350369212,1737815462588,-2482.07,0.00018219,2]
[350369213,1737815462598,-1414.32,0.00018219,2]
[350369214,1737815462607,-537.11,0.00018219,2]
[350369215,1737815462616,-500.0,0.00018219,2]
[350369216,1737815462626,-500.0,0.00018219,2]
[350369217,1737815462635,-667.36,0.00018219,2]
[350369218,1737815462645,-1211.55,0.00018219,2]
[350369219,1737815462654,-500.0,0.00018219,2]
[350369220,1737815462664,-510.36,0.00018219,2]
[350369221,1737815462673,-525.78,0.00018219,2]
[350369222,1737815462682,-500.0,0.00018219,2]
[350369223,1737815462691,-573.87,0.00018219,2]
[350369224,1737815462703,-1073.09,0.00018219,2]
[350369225,1737815462712,-1787.93,0.00018219,2]
[350369226,1737815462721,-500.0,0.00018219,2]
[350369227,1737815462730,-619.29,0.00018219,2]
[350369228,1737815462741,-500.0,0.00018219,2]
[350369229,1737815462750,-634.75,0.00018219,2]
[350369230,1737815462760,-500.0,0.00018219,2]
[350369231,1737815462769,-500.0,0.00018219,2]
[350369232,1737815462780,-622.31,0.00018219,2]
[350369233,1737815462789,-1731.58,0.00018219,2]
[350369234,1737815462799,-1257.87,0.00018219,2]
[350369235,1737815462808,-574.68,0.00018219,2]
[350369236,1737815462817,-500.0,0.00018219,2]
[350369237,1737815462826,-898.6,0.00018219,2]
[350369238,1737815462835,-543.74,0.00018219,2]
[350369239,1737815462845,-500.0,0.00018219,2]
[350369240,1737815462854,-879.75,0.00018219,2]
[350369241,1737815462863,-500.0,0.00018219,2]
[350369242,1737815462873,-500.0,0.00018219,2]
[350369243,1737815462882,-500.0,0.00018219,2]
[350369244,1737815462892,-843.9,0.00018219,2]
[350369245,1737815462901,-500.0,0.00018219,2]
[350369246,1737815462911,-1000.0,0.00018219,2]
[350369247,1737815462920,-2189.12,0.00018219,2]
[350369248,1737815462930,-705.19,0.00018219,2]
[350369249,1737815462941,-542.2,0.00018219,2]
[350369250,1737815462951,-500.0,0.00018219,2]
[350369251,1737815462960,-500.0,0.00018219,2]
[350369252,1737815462970,-751.55,0.00018219,2]
[350369253,1737815462979,-500.0,0.00018219,2]
[350369254,1737815463030,-2135.79,0.00018219,2]
[350369255,1737815463041,-151.43,0.000183,2]
[350369256,1737815463051,-324.66,0.00018304,2]
[350369257,1737815463060,-500.0,0.00018355,2]
[350369258,1737815463069,-500.0,0.00018356,2]
[350369259,1737815463079,-500.0,0.00018356,2]
[350369260,1737815463090,-763.46,0.00018356,2]
[350369261,1737815463100,-500.0,0.00018356,2]
[350369262,1737815463110,-584.8,0.00018356,2]
[350369263,1737815463119,-500.0,0.00018356,2]
[350369264,1737815463129,-500.0,0.00018356,2]
[350369265,1737815463139,-500.0,0.00018356,2]
[350369266,1737815463149,-500.0,0.00018356,2]
[350369267,1737815463159,-1784.29,0.00018356,2]
[350369268,1737815463168,-967.74,0.00018356,2]
[350369269,1737815463178,-500.0,0.00018356,2]
[350369270,1737815463187,-500.0,0.00018356,2]
[350369271,1737815463197,-970.51,0.00018356,2]
[350369272,1737815463207,-922.95,0.00018356,2]
[350369273,1737815463217,-822.39,0.00018356,2]
[350369274,1737815463227,-438.72909304,0.00018356,2]
[350369275,1737815463236,-513.91,0.00018356,2]
[350369276,1737815463246,-1282.13,0.00018356,2]
[350369277,1737815463255,-2359.15,0.00018356,2]
[350369278,1737815463265,-1575.49,0.00018356,2]
[350369279,1737815463275,-557.65,0.00018356,2]
[350369280,1737815463286,-500.0,0.00018356,2]
[350369281,1737815463295,-500.0,0.00018356,2]
[350369282,1737815463304,-500.0,0.00018356,2]
[350369283,1737815463313,-614.06,0.00018356,2]
[350369284,1737815463322,-500.0,0.00018356,2]
[350369285,1737815463331,-500.0,0.00018356,2]
[350369286,1737815463340,-558.27,0.00018356,2]
[350369287,1737815463350,-500.0,0.00018356,2]
[350369288,1737815463359,-1865.29,0.00018356,2]
[350369289,1737815463369,-640.62,0.00018356,2]
[350369290,1737815463379,-500.0,0.00018356,2]
[350369291,1737815463388,-754.97,0.00018356,2]
[350369292,1737815463398,-500.0,0.00018356,2]
[350369293,1737815463407,-500.0,0.00018356,2]
[350369294,1737815463417,-607.25,0.00018356,2]
[350369295,1737815463427,-500.0,0.00018356,2]
[350369296,1737815463436,-1238.12,0.00018356,2]
[350369297,1737815463446,-1671.13,0.00018356,2]
[350369298,1737815463455,-747.01,0.00018356,2]
[350369299,1737815463464,-2482.07,0.00018356,2]
[350369300,1737815463474,-1414.32,0.00018356,2]
[350369301,1737815463483,-537.11,0.00018356,2]
[350369302,1737815463493,-500.0,0.00018356,2]
[350369303,1737815463503,-500.0,0.00018356,2]
[350369304,1737815463513,-667.36,0.00018356,2]
[350369305,1737815463522,-1211.55,0.00018356,2]
[350369306,1737815463532,-500.0,0.00018356,2]
[350369307,1737815463543,-510.36,0.00018356,2]
[350369308,1737815463552,-525.78,0.00018356,2]
[350369309,1737815463562,-500.0,0.00018356,2]
[350369310,1737815463571,-573.87,0.00018356,2]
[350369311,1737815463581,-1073.09,0.00018356,2]
[350369312,1737815463591,-1787.93,0.00018356,2]
[350369313,1737815463600,-500.0,0.00018356,2]
[350369314,1737815463609,-619.29,0.00018356,2]
[350369315,1737815463619,-500.0,0.00018356,2]
[350369316,1737815463628,-634.75,0.00018356,2]
[350369317,1737815463638,-500.0,0.00018356,2]
[350369318,1737815463647,-500.0,0.00018356,2]
[350369319,1737815463657,-622.31,0.00018356,2]
[350369320,1737815463666,-1731.58,0.00018356,2]
[350369321,1737815463676,-1257.87,0.00018356,2]
[350369322,1737815463685,-574.68,0.00018356,2]
[350369323,1737815463695,-500.0,0.00018356,2]
[350369324,1737815463707,-898.6,0.00018356,2]
[350369325,1737815463717,-543.74,0.00018356,2]
[350369326,1737815463726,-500.0,0.00018356,2]
[350369327,1737815463735,-879.75,0.00018356,2]
[350369328,1737815463747,-500.0,0.00018356,2]
[350369329,1737815463757,-500.0,0.00018356,2]
[350369330,1737815463766,-500.0,0.00018356,2]
[350369331,1737815463775,-843.9,0.00018356,2]
[350369332,1737815463786,-500.0,0.00018356,2]
[350369333,1737815463795,-1000.0,0.00018356,2]
[350369334,1737815463806,-2189.12,0.00018356,2]
[350369335,1737815463816,-705.19,0.00018356,2]
[350369336,1737815463826,-542.2,0.00018356,2]
[350369337,1737815463835,-500.0,0.00018356,2]
[350369338,1737815463845,-500.0,0.00018356,2]
[350369339,1737815463854,-751.55,0.00018356,2]
[350369340,1737815463864,-500.0,0.00018356,2]
[350369341,1737815463874,-2135.79,0.00018356,2]
[350369342,1737815463884,-614.05082751,0.00018486,2]
[350369343,1737815463893,-327.09,0.00018492,2]
[350369344,1737815463903,-500.0,0.00018493,2]
[350369345,1737815463913,-500.0,0.00018493,2]
[350369346,1737815463923,-763.46,0.00018493,2]
[350369347,1737815463932,-500.0,0.00018493,2]
[350369348,1737815463942,-584.8,0.00018493,2]
[350369349,1737815463951,-194.16,0.00018493,2]
[350369350,1737815463962,-500.0,0.00018493,2]
[350369351,1737815463972,-500.0,0.00018493,2]
[350369352,1737815463982,-500.0,0.00018493,2]
[350369353,1737815463991,-1784.29,0.00018493,2]
[350369354,1737815464001,-967.74,0.00018493,2]
[350369355,1737815464011,-500.0,0.00018493,2]
[350369356,1737815464021,-500.0,0.00018493,2]
[350369357,1737815464031,-970.51,0.00018493,2]
[350369358,1737815464043,-922.95,0.00018493,2]
[350369359,1737815464053,-822.39,0.00018493,2]
[350369360,1737815464063,-513.91,0.00018493,2]
[350369361,1737815464073,-1282.13,0.00018493,2]
[350369362,1737815464083,-2359.15,0.00018493,2]
[350369363,1737815464093,-1575.49,0.00018493,2]
[350369364,1737815464103,-563.55,0.00018493,2]
[350369365,1737815464113,-500.0,0.00018493,2]
[350369366,1737815464122,-500.0,0.00018493,2]
[350369367,1737815464131,-614.06,0.00018493,2]
[350369368,1737815464141,-500.0,0.00018493,2]
[350369369,1737815464151,-500.0,0.00018493,2]
[350369370,1737815464160,-558.27,0.00018493,2]
[350369371,1737815464170,-500.0,0.00018493,2]
[350369372,1737815464180,-1865.29,0.00018493,2]
[350369373,1737815464189,-640.62,0.00018493,2]
[350369374,1737815464199,-500.0,0.00018493,2]
[350369375,1737815464208,-754.97,0.00018493,2]
[350369376,1737815464218,-500.0,0.00018493,2]
[350369377,1737815464228,-500.0,0.00018493,2]
[350369378,1737815464237,-607.25,0.00018493,2]
[350369379,1737815464247,-500.0,0.00018493,2]
[350369380,1737815464256,-1238.12,0.00018493,2]
[350369381,1737815464266,-1671.13,0.00018493,2]
[350369382,1737815464276,-747.01,0.00018493,2]
[350369383,1737815464287,-2482.07,0.00018493,2]
[350369384,1737815464297,-1414.32,0.00018493,2]
[350369385,1737815464307,-537.11,0.00018493,2]
[350369386,1737815464317,-500.0,0.00018493,2]
[350369387,1737815464326,-500.0,0.00018493,2]
[350369388,1737815464336,-667.36,0.00018493,2]
[350369389,1737815464346,-1211.55,0.00018493,2]
[350369390,1737815464356,-500.0,0.00018493,2]
[350369391,1737815464366,-510.36,0.00018493,2]
[350369392,1737815464376,-525.78,0.00018493,2]
[350369393,1737815464385,-500.0,0.00018493,2]
[350369394,1737815464394,-573.87,0.00018493,2]
[350369395,1737815464404,-1073.09,0.00018493,2]
[350369396,1737815464413,-1787.93,0.00018493,2]
[350369397,1737815464422,-500.0,0.00018493,2]
[350369398,1737815464431,-619.29,0.00018493,2]
[350369399,1737815464441,-500.0,0.00018493,2]
[350369400,1737815464451,-634.75,0.00018493,2]
[350369401,1737815464460,-500.0,0.00018493,2]
[350369402,1737815464470,-500.0,0.00018493,2]
[350369403,1737815464479,-622.31,0.00018493,2]
[350369404,1737815464489,-1731.58,0.00018493,2]
[350369405,1737815464499,-1257.87,0.00018493,2]
[350369406,1737815464508,-574.68,0.00018493,2]
[350369407,1737815464517,-500.0,0.00018493,2]
[350369408,1737815464526,-898.6,0.00018493,2]
[350369409,1737815464537,-543.74,0.00018493,2]
[350369410,1737815464546,-500.0,0.00018493,2]
[350369411,1737815464555,-879.75,0.00018493,2]
[350369412,1737815464565,-500.0,0.00018493,2]
[350369413,1737815464575,-500.0,0.00018493,2]
[350369414,1737815464585,-843.9,0.00018493,2]
[350369415,1737815464595,-500.0,0.00018493,2]
[350369416,1737815464605,-1000.0,0.00018493,2]
[350369417,1737815464615,-2189.12,0.00018493,2]
[350369418,1737815464626,-705.19,0.00018493,2]
[350369419,1737815464636,-542.2,0.00018493,2]
[350369420,1737815464646,-500.0,0.00018493,2]
[350369421,1737815464656,-500.0,0.00018493,2]
[350369422,1737815464667,-751.55,0.00018493,2]
[350369423,1737815464678,-500.0,0.00018493,2]
[350369424,1737815464687,-2135.79,0.00018493,2]
[350369425,1737815464699,-158.75660413,0.000185,2]
[350369426,1737815464710,-684.18956319,0.00018573,2]
[350369427,1737815464719,-500.0,0.0001863,2]
[350369428,1737815464728,-578.28,0.0001863,2]
[350369429,1737815464738,-763.46,0.0001863,2]
[350369430,1737815464751,-500.0,0.0001863,2]
[350369431,1737815464762,-584.8,0.0001863,2]
[350369432,1737815464771,-500.0,0.0001863,2]
[350369433,1737815464783,-500.0,0.0001863,2]
[350369434,1737815464796,-500.0,0.0001863,2]
[350369435,1737815464806,-1784.29,0.0001863,2]
[350369436,1737815464817,-967.74,0.0001863,2]
[350369437,1737815464826,-500.0,0.0001863,2]
[350369438,1737815464836,-318.17,0.0001863,2]
[350369439,1737815464846,-970.51,0.0001863,2]
[350369440,1737815464854,-922.95,0.0001863,2]
[350369441,1737815464864,-822.39,0.0001863,2]
[350369442,1737815464875,-513.91,0.0001863,2]
[350369443,1737815464885,-1282.13,0.0001863,2]
[350369444,1737815464894,-2359.15,0.0001863,2]
[350369445,1737815464905,-1575.49,0.0001863,2]
[350369446,1737815464914,-500.0,0.0001863,2]
[350369447,1737815464923,-412.85388806,0.0001863,2]
[350369448,1737815464932,-614.06,0.0001863,2]
[350369449,1737815464942,-500.0,0.0001863,2]
[350369450,1737815464952,-500.0,0.0001863,2]
[350369451,1737815464961,-558.27,0.0001863,2]
[350369452,1737815464972,-500.0,0.0001863,2]
[350369453,1737815464982,-1865.29,0.0001863,2]
[350369454,1737815464991,-640.62,0.0001863,2]
[350369455,1737815465000,-500.0,0.0001863,2]
[350369456,1737815465010,-754.97,0.0001863,2]
[350369457,1737815465019,-500.0,0.0001863,2]
[350369458,1737815465029,-500.0,0.0001863,2]
[350369459,1737815465042,-607.25,0.0001863,2]
[350369460,1737815465052,-500.0,0.0001863,2]
[350369461,1737815465062,-1238.12,0.0001863,2]
[350369462,1737815465072,-1671.13,0.0001863,2]
[350369463,1737815465081,-747.01,0.0001863,2]
[350369464,1737815465091,-2482.07,0.0001863,2]
[350369465,1737815465101,-1414.32,0.0001863,2]
[350369466,1737815465109,-537.11,0.0001863,2]
[350369467,1737815465120,-500.0,0.0001863,2]
[350369468,1737815465130,-500.0,0.0001863,2]
[350369469,1737815465139,-667.36,0.0001863,2]
[350369470,1737815465149,-1211.55,0.0001863,2]
[350369471,1737815465158,-500.0,0.0001863,2]
[350369472,1737815465167,-510.36,0.0001863,2]
[350369473,1737815465176,-525.78,0.0001863,2]
[350369474,1737815465186,-500.0,0.0001863,2]
[350369475,1737815465194,-573.87,0.0001863,2]
[350369476,1737815465204,-1073.09,0.0001863,2]
[350369477,1737815465213,-1787.93,0.0001863,2]
[350369478,1737815465223,-500.0,0.0001863,2]
[350369479,1737815465233,-619.29,0.0001863,2]
[350369480,1737815465243,-500.0,0.0001863,2]
[350369481,1737815465252,-634.75,0.0001863,2]
[350369482,1737815465261,-500.0,0.0001863,2]
[350369483,1737815465270,-500.0,0.0001863,2]
[350369484,1737815465280,-622.31,0.0001863,2]
[350369485,1737815465292,-1731.58,0.0001863,2]
[350369486,1737815465302,-1257.87,0.0001863,2]
[350369487,1737815465312,-574.68,0.0001863,2]
[350369488,1737815465321,-500.0,0.0001863,2]
[350369489,1737815465330,-898.6,0.0001863,2]
[350369490,1737815465340,-543.74,0.0001863,2]
[350369491,1737815465349,-500.0,0.0001863,2]
[350369492,1737815465358,-879.75,0.0001863,2]
[350369493,1737815465368,-500.0,0.0001863,2]
[350369494,1737815465378,-500.0,0.0001863,2]
[350369495,1737815465387,-843.9,0.0001863,2]
[350369496,1737815465397,-500.0,0.0001863,2]
[350369497,1737815465406,-1000.0,0.0001863,2]
[350369498,1737815465416,-2189.12,0.0001863,2]
[350369499,1737815465426,-542.2,0.0001863,2]
[350369500,1737815465435,-500.0,0.0001863,2]
[350369501,1737815465444,-500.0,0.0001863,2]
[350369502,1737815465454,-751.55,0.0001863,2]
[350369503,1737815465463,-350.38,0.0001863,2]
[350369504,1737815465474,-2135.79,0.0001863,2]
[350369505,1737815465483,-245.72,0.00018751,2]
[350369506,1737815465492,-648.35,0.00018767,2]
[350369507,1737815465503,-763.46,0.00018767,2]
[350369508,1737815465514,-500.0,0.00018767,2]
[350369509,1737815465524,-584.8,0.00018767,2]
[350369510,1737815465533,-500.0,0.00018767,2]
[350369511,1737815465547,-500.0,0.00018767,2]
[350369512,1737815465557,-500.0,0.00018767,2]
[350369513,1737815465567,-1784.29,0.00018767,2]
[350369514,1737815465577,-967.74,0.00018767,2]
[350369515,1737815465587,-500.0,0.00018767,2]
[350369516,1737815465597,-970.51,0.00018767,2]
[350369517,1737815465607,-922.95,0.00018767,2]
[350369518,1737815465616,-822.39,0.00018767,2]
[350369519,1737815465626,-513.91,0.00018767,2]
[350369520,1737815465635,-1282.13,0.00018767,2]
[350369521,1737815465645,-2359.15,0.00018767,2]
[350369522,1737815465656,-1575.49,0.00018767,2]
[350369523,1737815465667,-500.0,0.00018767,2]
[350369524,1737815465677,-614.06,0.00018767,2]
[350369525,1737815465687,-500.0,0.00018767,2]
[350369526,1737815465699,-500.0,0.00018767,2]
[350369527,1737815465711,-558.27,0.00018767,2]
[350369528,1737815465721,-500.0,0.00018767,2]
[350369529,1737815465731,-1865.29,0.00018767,2]
[350369530,1737815465742,-640.62,0.00018767,2]
[350369531,1737815465752,-500.0,0.00018767,2]
[350369532,1737815465762,-754.97,0.00018767,2]
[350369533,1737815465771,-365.94,0.00018767,2]
[350369534,1737815465781,-500.0,0.00018767,2]
[350369535,1737815465795,-607.25,0.00018767,2]
[350369536,1737815465805,-501.89,0.00018767,2]
[350369537,1737815465815,-1238.12,0.00018767,2]
[350369538,1737815465825,-1671.13,0.00018767,2]
[350369539,1737815465835,-747.01,0.00018767,2]
[350369540,1737815465845,-2482.07,0.00018767,2]
[350369541,1737815465855,-1414.32,0.00018767,2]
[350369542,1737815465865,-537.11,0.00018767,2]
[350369543,1737815465876,-500.0,0.00018767,2]
[350369544,1737815465886,-500.0,0.00018767,2]
[350369545,1737815465896,-667.36,0.00018767,2]
[350369546,1737815465905,-1211.55,0.00018767,2]
[350369547,1737815465915,-500.0,0.00018767,2]
[350369548,1737815465925,-510.36,0.00018767,2]
[350369549,1737815465935,-525.78,0.00018767,2]
[350369550,1737815465947,-500.0,0.00018767,2]
[350369551,1737815465957,-573.87,0.00018767,2]
[350369552,1737815465967,-1073.09,0.00018767,2]
[350369553,1737815465977,-1787.93,0.00018767,2]
[350369554,1737815465986,-500.0,0.00018767,2]
[350369555,1737815465997,-619.29,0.00018767,2]
[350369556,1737815466007,-500.0,0.00018767,2]
[350369557,1737815466018,-634.75,0.00018767,2]
[350369558,1737815466028,-500.0,0.00018767,2]
[350369559,1737815466039,-500.0,0.00018767,2]
[350369560,1737815466049,-622.31,0.00018767,2]
[350369561,1737815466059,-1731.58,0.00018767,2]
[350369562,1737815466069,-1257.87,0.00018767,2]
[350369563,1737815466079,-574.68,0.00018767,2]
[350369564,1737815466088,-500.0,0.00018767,2]
[350369565,1737815466099,-898.6,0.00018767,2]
[350369566,1737815466110,-543.74,0.00018767,2]
[350369567,1737815466119,-500.0,0.00018767,2]
[350369568,1737815466129,-879.75,0.00018767,2]
[350369569,1737815466139,-194.35444967,0.00018767,2]
[350369570,1737815466149,-500.0,0.00018767,2]
[350369571,1737815466158,-843.9,0.00018767,2]
[350369572,1737815466168,-500.0,0.00018767,2]
[350369573,1737815466178,-1000.0,0.00018767,2]
[350369574,1737815466188,-2189.12,0.00018767,2]
[350369575,1737815466198,-542.2,0.00018767,2]
[350369576,1737815466208,-500.0,0.00018767,2]
[350369577,1737815466218,-500.0,0.00018767,2]
[350369578,1737815466228,-751.55,0.00018767,2]
[350369579,1737815466238,-2135.79,0.00018767,2]
[350369580,1737815466247,-614.05082751,0.00018797,2]
[350369581,1737815466259,-763.46,0.00018904,2]
[350369582,1737815466269,-388.35,0.00018904,2]
[350369583,1737815466279,-584.8,0.00018904,2]
[350369584,1737815466291,-274.41,0.00018904,2]
[350369585,1737815466301,-647.71,0.00018904,2]
[350369586,1737815466310,-500.0,0.00018904,2]
[350369587,1737815466320,-1784.29,0.00018904,2]
[350369588,1737815466330,-967.74,0.00018904,2]
[350369589,1737815466339,-500.0,0.00018904,2]
[350369590,1737815466349,-970.51,0.00018904,2]
[350369591,1737815466359,-922.95,0.00018904,2]
[350369592,1737815466369,-822.39,0.00018904,2]
[350369593,1737815466379,-513.91,0.00018904,2]
[350369594,1737815466389,-1282.13,0.00018904,2]
[350369595,1737815466398,-2359.15,0.00018904,2]
[350369596,1737815466407,-1575.49,0.00018904,2]
[350369597,1737815466417,-486.85375167,0.00018904,2]
[350369598,1737815466427,-614.06,0.00018904,2]
[350369599,1737815466436,-255.84,0.00018904,2]
[350369600,1737815466445,-500.0,0.00018904,2]
[350369601,1737815466456,-558.27,0.00018904,2]
[350369602,1737815466465,-500.0,0.00018904,2]
[350369603,1737815466475,-1865.29,0.00018904,2]
[350369604,1737815466485,-640.62,0.00018904,2]
[350369605,1737815466494,-500.0,0.00018904,2]
[350369606,1737815466504,-754.97,0.00018904,2]
[350369607,1737815466513,-267.7,0.00018904,2]
[350369608,1737815466523,-607.25,0.00018904,2]
[350369609,1737815466534,-1671.13,0.00018904,2]
[350369610,1737815466544,-747.01,0.00018904,2]
[350369611,1737815466554,-2482.07,0.00018904,2]
[350369612,1737815466564,-1414.32,0.00018904,2]
[350369613,1737815466574,-537.11,0.00018904,2]
[350369614,1737815466584,-296.31,0.00018904,2]
[350369615,1737815466594,-500.0,0.00018904,2]
[350369616,1737815466603,-667.36,0.00018904,2]
[350369617,1737815466613,-1211.55,0.00018904,2]
[350369618,1737815466622,-631.3,0.00018904,2]
[350369619,1737815466631,-510.36,0.00018904,2]
[350369620,1737815466641,-525.78,0.00018904,2]
[350369621,1737815466651,-500.0,0.00018904,2]
[350369622,1737815466661,-573.87,0.00018904,2]
[350369623,1737815466670,-1073.09,0.00018904,2]
[350369624,1737815466679,-1787.93,0.00018904,2]
[350369625,1737815466689,-500.0,0.00018904,2]
[350369626,1737815466702,-619.29,0.00018904,2]
[350369627,1737815466712,-500.0,0.00018904,2]
[350369628,1737815466721,-634.75,0.00018904,2]
[350369629,1737815466731,-500.0,0.00018904,2]
[350369630,1737815466742,-500.0,0.00018904,2]
[350369631,1737815466751,-622.31,0.00018904,2]
[350369632,1737815466761,-1731.58,0.00018904,2]
[350369633,1737815466771,-1257.87,0.00018904,2]
[350369634,1737815466782,-574.68,0.00018904,2]
[350369635,1737815466796,-898.6,0.00018904,2]
[350369636,1737815466806,-543.74,0.00018904,2]
[350369637,1737815466815,-500.0,0.00018904,2]
[350369638,1737815466825,-879.75,0.00018904,2]
[350369639,1737815466835,-843.9,0.00018904,2]
[350369640,1737815466845,-567.79,0.00018904,2]
[350369641,1737815466855,-2189.12,0.00018904,2]
[350369642,1737815466865,-542.2,0.00018904,2]
[350369643,1737815466876,-500.0,0.00018904,2]
[350369644,1737815466886,-523.89,0.00018904,2]
[350369645,1737815466895,-751.55,0.00018904,2]
[350369646,1737815466905,-1264.61,0.00018947,2]
[350369647,1737815466915,-1613.0,0.0001898,2]
[350369648,1737815466925,-500.0,0.00018986,2]
[350369649,1737815466935,-252.91629582,0.00018998,2]
[350369650,1737815466946,-650.0,0.00019,2]
[350369651,1737815466956,-4803.81719093,0.00019025,2]
[350369652,1737815466965,-763.46,0.00019041,2]
[350369653,1737815466975,-584.8,0.00019041,2]
[350369654,1737815466984,-500.0,0.00019041,2]
[350369655,1737815466994,-1784.29,0.00019041,2]
[350369656,1737815467004,-967.74,0.00019041,2]
[350369657,1737815467014,-500.0,0.00019041,2]
[350369658,1737815467024,-970.51,0.00019041,2]
[350369659,1737815467034,-922.95,0.00019041,2]
[350369660,1737815467047,-822.39,0.00019041,2]
[350369661,1737815467057,-513.91,0.00019041,2]
[350369662,1737815467067,-1282.13,0.00019041,2]
[350369663,1737815467076,-2359.15,0.00019041,2]
[350369664,1737815467087,-1575.49,0.00019041,2]
[350369665,1737815467096,-614.06,0.00019041,2]
[350369666,1737815467106,-500.0,0.00019041,2]
[350369667,1737815467116,-558.27,0.00019041,2]
[350369668,1737815467126,-500.0,0.00019041,2]
[350369669,1737815467135,-1865.29,0.00019041,2]
[350369670,1737815467145,-640.62,0.00019041,2]
[350369671,1737815467155,-500.0,0.00019041,2]
[350369672,1737815467165,-754.97,0.00019041,2]
[350369673,1737815467175,-607.25,0.00019041,2]
[350369674,1737815467185,-1671.13,0.00019041,2]
[350369675,1737815467195,-747.01,0.00019041,2]
[350369676,1737815467206,-2482.07,0.00019041,2]
[350369677,1737815467215,-1414.32,0.00019041,2]
[350369678,1737815467225,-537.11,0.00019041,2]
[350369679,1737815467235,-500.0,0.00019041,2]
[350369680,1737815467244,-667.36,0.00019041,2]
[350369681,1737815467254,-1211.55,0.00019041,2]
[350369682,1737815467264,-510.36,0.00019041,2]
[350369683,1737815467274,-525.78,0.00019041,2]
[350369684,1737815467284,-500.0,0.00019041,2]
[350369685,1737815467295,-573.87,0.00019041,2]
[350369686,1737815467305,-1073.09,0.00019041,2]
[350369687,1737815467315,-1787.93,0.00019041,2]
[350369688,1737815467325,-500.0,0.00019041,2]
[350369689,1737815467334,-619.29,0.00019041,2]
[350369690,1737815467344,-320.24999999,0.00019041,2]
[350369691,1737815467355,-634.75,0.00019041,2]
[350369692,1737815467364,-500.0,0.00019041,2]
[350369693,1737815467375,-500.0,0.00019041,2]
[350369694,1737815467384,-622.31,0.00019041,2]
[350369695,1737815467394,-1731.58,0.00019041,2]
[350369696,1737815467404,-1257.87,0.00019041,2]
[350369697,1737815467414,-574.68,0.00019041,2]
[350369698,1737815467424,-898.6,0.00019041,2]
[350369699,1737815467434,-543.74,0.00019041,2]
[350369700,1737815467445,-879.75,0.00019041,2]
[350369701,1737815467454,-843.9,0.00019041,2]
[350369702,1737815467464,-2189.12,0.00019041,2]
[350369703,1737815467475,-542.2,0.00019041,2]